fUSD/lending_fUSD_20240423
["ID","MTS","AMOUNT","RATE_DAILY","PERIOD"]
[323312550,1713885055775,-546.83301912,0.00012012,2]
[323312551,1713885055784,-417.6148801,0.00012012,2]
[323312552,1713885055793,-502.36935478,0.00012012,2]
[323312553,1713885055803,-500.0,0.00012012,2]
[323312554,1713885055812,-500.0,0.00012012,2]
[323312555,1713885055821,-500.0,0.00012012,2]
[323312556,1713885055831,-708.13,0.00012012,2]
[323312557,1713885055840,-502.0610673,0.00012012,2]
[323312558,1713885055849,-503.93078649,0.00012012,2]
[323312559,1713885055858,-547.93,0.00012012,2]
[323312560,1713885055867,-500.0,0.00012012,2]
[323312561,1713885055877,-500.0,0.00012012,2]
[323312562,1713885055886,-500.0,0.00012012,2]
[323312563,1713885055894,-500.0,0.00012012,2]
[323312564,1713885055903,-302.39601475,0.00012012,2]
[323312565,1713885055912,-500.0,0.00012012,2]
[323312566,1713885055922,-500.0,0.00012012,2]
[323312567,1713885055931,-500.0,0.00012012,2]
[323312568,1713885055943,-226.81564346,0.00012012,2]
[323312569,1713885055952,-485.73544791,0.00012012,2]
[323312570,1713885055962,-505.03011299,0.00012012,2]
[323312571,1713885055971,-450.0,0.00012012,2]
[323312572,1713885055981,-500.0,0.00012012,2]
[323312573,1713885055990,-500.0,0.00012012,2]
[323312574,1713885055999,-500.0,0.00012012,2]
[323312575,1713885056009,-507.17336659,0.00012012,2]
[323312576,1713885056018,-532.33986299,0.00012012,2]
[323312577,1713885056027,-500.0,0.00012012,2]
[323312578,1713885056036,-500.0,0.00012012,2]
[323312579,1713885056046,-500.0,0.00012012,2]
[323312580,1713885056055,-500.0,0.00012012,2]
[323312581,1713885056065,-500.0,0.00012012,2]
[323312582,1713885056074,-500.0,0.00012012,2]
[323312583,1713885056084,-500.0,0.00012012,2]
[323312584,1713885056094,-500.0,0.00012012,2]
[323312585,1713885056103,-499.35145808,0.00012012,2]
[323312586,1713885056112,-500.0,0.00012012,2]
[323312587,1713885056122,-500.0,0.00012012,2]
[323312588,1713885056132,-500.0,0.00012012,2]
[323312589,1713885056141,-502.34598686,0.00012012,2]
[323312590,1713885056150,-500.0,0.00012012,2]
[323312591,1713885056159,-503.44429813,0.00012012,2]
[323312592,1713885056169,-500.0,0.00012012,2]
[323312593,1713885056179,-500.0,0.00012012,2]
[323312594,1713885056188,-627.41941267,0.00012012,2]
[323312595,1713885056199,-500.0,0.00012012,2]
[323312596,1713885056209,-500.0,0.00012012,2]
[323312597,1713885056218,-500.0,0.00012012,2]
[323312598,1713885056230,-500.0,0.00012012,2]
[323312599,1713885056241,-309.64,0.00012012,2]
[323312600,1713885056250,-500.0,0.00012012,2]
[323312601,1713885056259,-500.0,0.00012012,2]
[323312602,1713885056269,-608.15,0.00012012,2]
[323312603,1713885056278,-500.0,0.00012012,2]
[323312604,1713885056287,-500.0,0.00012012,2]
[323312605,1713885056297,-500.0,0.00012012,2]
[323312606,1713885056306,-500.0,0.00012012,2]
[323312607,1713885056315,-500.0,0.00012012,2]
[323312608,1713885056324,-158.88,0.00012012,2]
[323312609,1713885056333,-572.20552832,0.00012012,2]
[323312610,1713885056342,-772.72,0.00012012,2]
[323312611,1713885056351,-265.44,0.00012012,2]
[323312612,1713885056360,-500.0,0.00012012,2]
[323312613,1713885056369,-548.39013493,0.00012012,2]
[323312614,1713885056379,-500.0,0.00012012,2]
[323312615,1713885056388,-331.39,0.00012012,2]
[323312616,1713885056397,-257.05,0.00012012,2]
[323312617,1713885056406,-500.0,0.00012012,2]
[323312618,1713885056416,-500.0,0.00012012,2]
[323312619,1713885056425,-500.0,0.00012012,2]
[323312620,1713885056434,-500.0,0.00012012,2]
[323312621,1713885056446,-500.0,0.00012012,2]
[323312622,1713885056455,-500.0,0.00012012,2]
[323312623,1713885056465,-430.02,0.00012012,2]
[323312624,1713885056475,-500.0,0.00012012,2]
[323312625,1713885056484,-500.0,0.00012012,2]
[323312626,1713885056494,-503.70783191,0.00012012,2]
[323312627,1713885056503,-500.0,0.00012012,2]
[323312628,1713885056513,-475.56507665,0.00012012,2]
[323312629,1713885056524,-199.15,0.00012012,2]
[323312630,1713885056533,-176.64,0.00012012,2]
[323312631,1713885056542,-500.0,0.00012012,2]
[323312632,1713885056551,-340.7,0.00012012,2]
[323312633,1713885056560,-500.0,0.00012012,2]
[323312634,1713885056570,-500.0,0.00012012,2]
[323312635,1713885056580,-500.0,0.00012012,2]
[323312636,1713885056589,-500.0,0.00012012,2]
[323312637,1713885056599,-500.0,0.00012012,2]
[323312638,1713885056608,-263.03,0.00012012,2]
[323312639,1713885056618,-289.97,0.00012012,2]
[323312640,1713885056628,-500.0,0.00012012,2]
[323312641,1713885056638,-153.38,0.00012012,2]
[323312642,1713885056648,-593.14,0.00012012,2]
[323312643,1713885056658,-500.0,0.00012012,2]
[323312644,1713885056668,-500.0,0.00012012,2]
[323312645,1713885056679,-327.53,0.00012012,2]
[323312646,1713885056692,-154.09,0.00012012,2]
[323312647,1713885056701,-563.65,0.00012012,2]
[323312648,1713885056711,-461.27,0.00012012,2]
[323312649,1713885056721,-305.96,0.00012012,2]
[323312650,1713885056731,-500.0,0.00012012,2]
[323312651,1713885056741,-307.3,0.00012012,2]
[323312652,1713885056751,-462.17,0.00012012,2]
[323312653,1713885056761,-522.03,0.00012012,2]
[323312654,1713885056771,-500.0,0.00012012,2]
[323312655,1713885056780,-500.0,0.00012012,2]
[323312656,1713885056790,-500.0,0.00012012,2]
[323312657,1713885056799,-544.03348636,0.00012012,2]
[323312658,1713885056809,-500.0,0.00012012,2]
[323312659,1713885056818,-477.66,0.00012012,2]
[323312660,1713885056827,-198.68,0.00012012,2]
[323312661,1713885056837,-519.43,0.00012012,2]
[323312662,1713885056847,-270.64,0.00012012,2]
[323312663,1713885056857,-500.0,0.00012012,2]
[323312664,1713885057053,-500.0,0.00012012,2]
[323312665,1713885057062,-500.0,0.00012012,2]
[323312666,1713885057071,-500.0,0.00012012,2]
[323312667,1713885057081,-384.61,0.00012012,2]
[323312668,1713885057091,-500.0,0.00012012,2]
[323312669,1713885057100,-500.0,0.00012012,2]
[323312670,1713885057109,-522.2,0.00012012,2]
[323312671,1713885057119,-574.32,0.00012012,2]
[323312672,1713885057128,-356.14,0.00012012,2]
[323312673,1713885057137,-500.99,0.00012012,2]
[323312674,1713885057148,-295.35,0.00012012,2]
[323312675,1713885057157,-167.32,0.00012012,2]
[323312676,1713885057166,-500.0,0.00012012,2]
[323312677,1713885057176,-500.0,0.00012012,2]
[323312678,1713885057185,-500.0,0.00012012,2]
[323312679,1713885057197,-216.64,0.00012012,2]
[323312680,1713885057207,-500.0,0.00012012,2]
[323312681,1713885057217,-500.0,0.00012012,2]
[323312682,1713885057226,-404.37,0.00012012,2]
[323312683,1713885057236,-500.0,0.00012012,2]
[323312684,1713885057245,-151.51,0.00012012,2]
[323312685,1713885057255,-500.0,0.00012012,2]
[323312686,1713885057266,-500.0,0.00012012,2]
[323312687,1713885057275,-500.0,0.00012012,2]
[323312688,1713885057284,-500.0,0.00012012,2]
[323312689,1713885057293,-500.0,0.00012012,2]
[323312690,1713885057302,-500.0,0.00012012,2]
[323312691,1713885057311,-513.34,0.00012012,2]
[323312692,1713885057321,-588.59,0.00012012,2]
[323312693,1713885057330,-500.0,0.00012012,2]
[323312694,1713885057339,-196.46,0.00012012,2]
[323312695,1713885057348,-500.0,0.00012012,2]
[323312696,1713885057358,-632.0,0.00012012,2]
[323312697,1713885057367,-225.94,0.00012012,2]
[323312698,1713885057376,-500.0,0.00012012,2]
[323312699,1713885057385,-500.0,0.00012012,2]
[323312700,1713885057394,-290.41143325,0.00012012,2]
[323312701,1713885057404,-500.0,0.00012012,2]
[323312702,1713885057413,-500.0,0.00012012,2]
[323312703,1713885057422,-500.0,0.00012012,2]
[323312704,1713885057431,-276.46913576,0.00012012,2]
[323312705,1713885057441,-500.0,0.00012012,2]
[323312706,1713885057450,-500.0,0.00012012,2]
[323312707,1713885057459,-500.0,0.00012012,2]
[323312708,1713885057468,-598.8,0.00012012,2]
[323312709,1713885057478,-500.0,0.00012012,2]
[323312710,1713885057487,-500.0,0.00012012,2]
[323312711,1713885057497,-500.0,0.00012012,2]
[323312712,1713885057506,-500.0,0.00012012,2]
[323312713,1713885057515,-500.0,0.00012012,2]
[323312714,1713885057525,-500.0,0.00012012,2]
[323312715,1713885057534,-500.0,0.00012012,2]
[323312716,1713885057543,-194.8386271,0.00012012,2]
[323312717,1713885057552,-500.0,0.00012012,2]
[323312718,1713885057561,-500.0,0.00012012,2]
[323312719,1713885057570,-500.0,0.00012012,2]
[323312720,1713885057580,-500.0,0.00012012,2]
[323312721,1713885057589,-500.0,0.00012012,2]
[323312722,1713885057599,-500.0,0.00012012,2]
[323312723,1713885057608,-439.53,0.00012012,2]
[323312724,1713885057617,-500.0,0.00012012,2]
[323312725,1713885057626,-500.0,0.00012012,2]
[323312726,1713885057635,-500.0,0.00012012,2]
[323312727,1713885057645,-500.0,0.00012012,2]
[323312728,1713885057654,-500.0,0.00012012,2]
[323312729,1713885057664,-500.0,0.00012012,2]
[323312730,1713885057673,-500.0,0.00012012,2]
[323312731,1713885057684,-307.11,0.00012012,2]
[323312732,1713885057696,-434.23,0.00012012,2]
[323312733,1713885057705,-500.0,0.00012012,2]
[323312734,1713885057714,-588.74,0.00012012,2]
[323312735,1713885057723,-500.0,0.00012012,2]
[323312736,1713885057734,-500.0,0.00012012,2]
[323312737,1713885057743,-5000.0,0.00012013,2]
[323312738,1713885057753,-1571.35922,0.00012013,2]
[323312739,1713885057762,-5000.0,0.00012025,2]
[323312740,1713885057771,-5000.0,0.00012038,2]
[323312741,1713885057780,-1043.24282631,0.00012041,2]
[323312742,1713885057789,-280.01132815,0.00012047,2]
[323312743,1713885057798,-5000.0,0.0001205,2]
[323312744,1713885057808,-5000.0,0.00012063,2]
[323312745,1713885057817,-500.0,0.00012074,2]
[323312746,1713885057827,-5000.0,0.00012075,2]
[323312747,1713885057836,-5000.0,0.00012088,2]
[323312748,1713885057847,-5000.0,0.000121,2]
[323312749,1713885057856,-500.0,0.00012112,2]
[323312750,1713885057865,-500.0,0.00012112,2]
[323312751,1713885057875,-500.0,0.00012112,2]
[323312752,1713885057884,-175.52,0.00012155,2]
[323312753,1713885057893,-280.01132815,0.00012184,2]
[323312754,1713885057903,-1834.3608402,0.00012186,2]
[323312755,1713885057912,-195.33811108,0.00012186,2]
[323312756,1713885057921,-10000.0,0.00012187,2]
[323312757,1713885057931,-206.71908166,0.000122,2]
[323312758,1713885057940,-8277.63504657,0.000122,2]
[323312759,1713885057950,-1834.36084011,0.00012251,2]
[323312760,1713885057960,-351.13088306,0.00012284,2]
[323312761,1713885057970,-1125.07418051,0.00012284,2]
[323312762,1713885057979,-201.07023406,0.00012284,2]
[323312763,1713885057988,-166.91936391,0.00012284,2]
[323312764,1713885057998,-2361.72063418,0.00012284,2]
[323312765,1713885058008,-406.09008552,0.00012284,2]
[323312766,1713885058017,-3757.73056516,0.00012284,2]
[323312767,1713885058027,-325.39312351,0.00012284,2]
[323312768,1713885058038,-535.68104396,0.00012284,2]
[323312769,1713885058048,-837.37,0.00012284,2]
[323312770,1713885058058,-500.0,0.00012284,2]
[323312771,1713885058068,-799.66,0.00012284,2]
[323312772,1713885058077,-638.17,0.00012284,2]
[323312773,1713885058087,-500.0,0.00012284,2]
[323312774,1713885058097,-752.79,0.00012284,2]
[323312775,1713885058106,-862.47,0.00012284,2]
[323312776,1713885058117,-500.0,0.00012284,2]
[323312777,1713885058127,-2745.53,0.00012284,2]
[323312778,1713885058137,-5680.55,0.00012284,2]
[323312779,1713885058146,-500.0,0.00012284,2]
[323312780,1713885058155,-820.49,0.00012284,2]
[323312781,1713885058164,-658.13,0.00012284,2]
[323312782,1713885058174,-4194.57,0.00012284,2]
[323312783,1713885058183,-734.34,0.00012284,2]
[323312784,1713885058193,-843.95,0.00012284,2]
[323312785,1713885058202,-1658.53,0.00012284,2]
[323312786,1713885058211,-523.46,0.00012284,2]
[323312787,1713885058220,-1893.65,0.00012284,2]
[323312788,1713885058229,-602.46,0.00012284,2]
[323312789,1713885058239,-4007.93,0.00012284,2]
[323312790,1713885058248,-1064.72,0.00012284,2]
[323312791,1713885058257,-1774.25,0.00012284,2]
[323312792,1713885058267,-740.12,0.00012284,2]
[323312793,1713885058275,-594.67278002,0.00012284,2]
[323312794,1713885058284,-500.0,0.00012284,2]
[323312795,1713885058294,-500.0,0.00012284,2]
[323312796,1713885058304,-1774.77,0.00012284,2]
[323312797,1713885058314,-864.72,0.00012284,2]
[323312798,1713885058323,-520.06,0.00012284,2]
[323312799,1713885058332,-1417.05,0.00012284,2]
[323312800,1713885058341,-1809.22291569,0.00012285,3]
[323312801,1713885058351,-500.0,0.00012285,2]
[323312802,1713885058362,-500.0,0.00012285,2]
[323312803,1713885058371,-193.22,0.00012285,2]
[323312804,1713885058381,-500.0,0.00012285,2]
[323312805,1713885058390,-500.0,0.00012285,2]
[323312806,1713885058399,-500.0,0.00012285,2]
[323312807,1713885058409,-644.29,0.00012285,2]
[323312808,1713885058418,-500.0,0.00012285,2]
[323312809,1713885058428,-500.0,0.00012285,2]
[323312810,1713885058437,-500.0,0.00012285,2]
[323312811,1713885058448,-500.0,0.00012285,2]
[323312812,1713885058458,-500.0,0.00012285,2]
[323312813,1713885058467,-500.0,0.00012285,2]
[323312814,1713885058476,-472.11,0.00012285,2]
[323312815,1713885058486,-547.34124655,0.00012285,2]
[323312816,1713885058495,-517.14,0.00012285,2]
[323312817,1713885058504,-500.0,0.00012285,2]
[323312818,1713885058513,-500.0,0.00012285,2]
[323312819,1713885058523,-728.44,0.00012285,2]
[323312820,1713885058540,-500.0,0.00012285,2]
[323312821,1713885058558,-500.0,0.00012285,2]
[323312822,1713885058574,-765.79,0.00012285,2]
[323312823,1713885058587,-500.0,0.00012285,2]
[323312824,1713885058602,-492.56793359,0.00012285,2]
[323312825,1713885058618,-500.0,0.00012285,2]
[323312826,1713885058633,-500.0,0.00012285,2]
[323312827,1713885058645,-590.28,0.00012285,2]
[323312828,1713885058660,-500.0,0.00012285,2]
[323312829,1713885058675,-500.0,0.00012285,2]
[323312830,1713885058690,-500.0,0.00012285,2]
[323312831,1713885058705,-571.73,0.00012285,2]
[323312832,1713885058716,-982.16,0.00012285,2]
[323312833,1713885058735,-500.0,0.00012285,2]
[323312834,1713885058751,-500.0,0.00012285,2]
[323312835,1713885058766,-500.0,0.00012285,2]
[323312836,1713885058780,-500.0,0.00012285,2]
[323312837,1713885058796,-611.25,0.00012285,2]
[323312838,1713885058811,-500.0,0.00012285,2]
[323312839,1713885058827,-270.01,0.00012285,2]
[323312840,1713885058843,-500.0,0.00012285,2]
[323312841,1713885058856,-804.34,0.00012285,2]
[323312842,1713885058867,-533.61,0.00012285,2]
[323312843,1713885058881,-550.48,0.00012285,2]
[323312844,1713885058894,-500.0,0.00012285,2]
[323312845,1713885058910,-500.0,0.00012285,2]
[323312846,1713885058921,-500.0,0.00012285,2]
[323312847,1713885058934,-787.16,0.00012285,2]
[323312848,1713885058948,-723.23,0.00012285,2]
[323312849,1713885058962,-500.0,0.00012285,2]
[323312850,1713885058974,-500.0,0.00012285,2]
[323312851,1713885058988,-578.34,0.00012285,2]
[323312852,1713885058999,-500.0,0.00012285,2]
[323312853,1713885059014,-209.96,0.00012285,2]
[323312854,1713885059025,-352.1,0.00012285,2]
[323312855,1713885059038,-696.25,0.00012285,2]
[323312856,1713885059051,-500.0,0.00012285,2]
[323312857,1713885059064,-500.0,0.00012285,2]
[323312858,1713885059080,-500.0,0.00012285,2]
[323312859,1713885059093,-500.0,0.00012285,2]
[323312860,1713885059105,-500.0,0.00012285,2]
[323312861,1713885059118,-500.0,0.00012285,2]
[323312862,1713885059130,-443.27882592,0.00012285,2]
[323312863,1713885059143,-500.0,0.00012285,2]
[323312864,1713885059156,-500.0,0.00012285,2]
[323312865,1713885059169,-500.0,0.00012285,2]
[323312866,1713885059181,-500.0,0.00012285,2]
[323312867,1713885059196,-500.0,0.00012285,2]
[323312868,1713885059208,-500.50376351,0.00012285,2]
[323312869,1713885059221,-394.15010686,0.00012285,2]
[323312870,1713885059233,-482.55,0.00012285,2]
[323312871,1713885059245,-500.0,0.00012285,2]
[323312872,1713885059258,-882.51,0.00012285,2]
[323312873,1713885059271,-500.0,0.00012285,2]
[323312874,1713885059284,-500.0,0.00012285,2]
[323312875,1713885059296,-500.0,0.00012285,2]
[323312876,1713885059308,-500.0,0.00012285,2]
[323312877,1713885059321,-500.0,0.00012285,2]
[323312878,1713885059334,-500.0,0.00012285,2]
[323312879,1713885059346,-500.0,0.00012285,2]
[323312880,1713885059358,-500.0,0.00012285,2]
[323312881,1713885059371,-500.0,0.00012285,2]
[323312882,1713885059384,-500.0,0.00012285,2]
[323312883,1713885059397,-500.0,0.00012285,2]
[323312884,1713885059410,-500.0,0.00012285,2]
[323312885,1713885059422,-500.0,0.00012285,2]
[323312886,1713885059435,-500.0,0.00012285,2]
[323312887,1713885059450,-500.0,0.00012285,2]
[323312888,1713885059463,-500.0,0.00012285,2]
[323312889,1713885059477,-500.0,0.00012285,2]
[323312890,1713885059489,-500.0,0.00012285,2]
[323312891,1713885059503,-500.0,0.00012285,2]
[323312892,1713885059516,-500.0,0.00012285,2]
[323312893,1713885059529,-500.0,0.00012285,2]
[323312894,1713885059542,-500.0,0.00012285,2]
[323312895,1713885059555,-500.0,0.00012285,2]
[323312896,1713885059568,-500.0,0.00012285,2]
[323312897,1713885059582,-500.0,0.00012285,2]
[323312898,1713885059594,-612.14,0.00012285,2]
[323312899,1713885059607,-500.0,0.00012285,2]
[323312900,1713885059620,-500.0,0.00012285,2]
[323312901,1713885059633,-500.0,0.00012285,2]
[323312902,1713885059646,-500.0,0.00012285,2]
[323312903,1713885059658,-500.0,0.00012285,2]
[323312904,1713885059671,-440.5,0.00012285,2]
[323312905,1713885059684,-500.0,0.00012285,2]
[323312906,1713885059698,-500.0,0.00012285,2]
[323312907,1713885059711,-500.0,0.00012285,2]
[323312908,1713885059724,-500.0,0.00012285,2]
[323312909,1713885059736,-500.0,0.00012285,2]
[323312910,1713885059749,-500.0,0.00012285,2]
[323312911,1713885059762,-500.0,0.00012285,2]
[323312912,1713885059775,-500.0,0.00012285,2]
[323312913,1713885059787,-1018.89,0.00012285,2]
[323312914,1713885059800,-579.9,0.00012285,2]
[323312915,1713885059813,-500.0,0.00012285,2]
[323312916,1713885059825,-500.0,0.00012285,2]
[323312917,1713885059838,-711.01,0.00012285,2]
[323312918,1713885059852,-500.0,0.00012285,2]
[323312919,1713885059864,-706.45,0.00012285,2]
[323312920,1713885059878,-500.0,0.00012285,2]
[323312921,1713885059891,-500.0,0.00012285,2]
[323312922,1713885059904,-500.0,0.00012285,2]
[323312923,1713885059917,-500.0,0.00012285,2]
[323312924,1713885059930,-552.88,0.00012285,2]
[323312925,1713885059947,-500.0,0.00012285,2]
[323312926,1713885059961,-500.0,0.00012285,2]
[323312927,1713885059974,-500.0,0.00012285,2]
[323312928,1713885059984,-686.97,0.00012285,2]
[323312929,1713885059994,-188.16,0.00012285,2]
[323312930,1713885060004,-500.0,0.00012285,2]
[323312931,1713885060014,-500.0,0.00012285,2]
[323312932,1713885060023,-500.0,0.00012285,2]
[323312933,1713885060033,-150.0,0.00012285,2]
[323312934,1713885060043,-500.0,0.00012285,2]
[323312935,1713885060053,-604.25,0.00012285,2]
[323312936,1713885060063,-500.0,0.00012285,2]
[323312937,1713885060073,-500.0,0.00012285,2]
[323312938,1713885060082,-500.0,0.00012285,2]
[323312939,1713885060092,-500.0,0.00012285,2]
[323312940,1713885060101,-217.76,0.00012285,2]
[323312941,1713885060110,-701.02,0.00012285,2]
[323312942,1713885060119,-500.0,0.00012285,2]
[323312943,1713885060128,-300.64,0.00012285,2]
[323312944,1713885060137,-500.0,0.00012285,2]
[323312945,1713885060147,-500.0,0.00012285,2]
[323312946,1713885060156,-500.0,0.00012285,2]
[323312947,1713885060166,-500.0,0.00012285,2]
[323312948,1713885060175,-500.0,0.00012285,2]
[323312949,1713885060185,-500.0,0.00012285,2]
[323312950,1713885060198,-1026.59,0.00012285,2]
[323312951,1713885060208,-733.09,0.00012285,2]
[323312952,1713885060217,-680.83,0.00012285,2]
[323312953,1713885060228,-843.34,0.00012285,2]
[323312954,1713885060239,-500.0,0.00012285,2]
[323312955,1713885060248,-500.0,0.00012285,2]
[323312956,1713885060258,-500.0,0.00012285,2]
[323312957,1713885060268,-500.0,0.00012285,2]
[323312958,1713885060278,-500.0,0.00012285,2]
[323312959,1713885060287,-500.0,0.00012285,2]
[323312960,1713885060297,-574.69,0.00012285,2]
[323312961,1713885060307,-500.0,0.00012285,2]
[323312962,1713885060316,-543.72,0.00012285,2]
[323312963,1713885060325,-500.0,0.00012285,2]
[323312964,1713885060335,-500.0,0.00012285,2]
[323312965,1713885060345,-500.0,0.00012285,2]
[323312966,1713885060355,-525.67165184,0.00012285,2]
[323312967,1713885060364,-500.0,0.00012285,2]
[323312968,1713885060373,-723.11,0.00012285,2]
[323312969,1713885060382,-500.0,0.00012285,2]
[323312970,1713885060392,-500.0,0.00012285,2]
[323312971,1713885060401,-1007.2,0.00012285,2]
[323312972,1713885060822,-500.0,0.00012285,2]
[323312973,1713885060846,-535.61,0.00012285,2]
[323312974,1713885060866,-500.0,0.00012285,2]
[323312975,1713885060889,-500.0,0.00012285,2]
[323312976,1713885060899,-290.5,0.00012285,2]
[323312977,1713885060910,-516.37,0.00012285,2]
[323312978,1713885060920,-500.0,0.00012285,2]
[323312979,1713885060929,-555.05,0.00012285,2]
[323312980,1713885060938,-500.0,0.00012285,2]
[323312981,1713885060954,-500.0,0.00012285,2]
[323312982,1713885060964,-317.47,0.00012285,2]
[323312983,1713885060974,-565.77,0.00012285,2]
[323312984,1713885060985,-2582.68,0.00012285,2]
[323312985,1713885060995,-590.15,0.00012285,2]
[323312986,1713885061006,-1061.71,0.00012285,2]
[323312987,1713885061016,-601.71,0.00012285,2]
[323312988,1713885061027,-1927.54,0.00012285,2]
[323312989,1713885061037,-500.0,0.00012285,2]
[323312990,1713885061048,-621.57,0.00012285,2]
[323312991,1713885061061,-198.26,0.00012285,2]
[323312992,1713885061071,-500.0,0.00012285,2]
[323312993,1713885061081,-500.0,0.00012285,2]
[323312994,1713885061091,-5247.78,0.00012285,2]
[323312995,1713885061102,-153.74,0.00012285,2]
[323312996,1713885061113,-550.8,0.00012285,2]
[323312997,1713885061123,-861.67,0.00012285,2]
[323312998,1713885061133,-500.0,0.00012285,2]
[323312999,1713885061144,-500.0,0.00012285,2]
[323313000,1713885061154,-500.0,0.00012285,2]
[323313001,1713885061163,-500.0,0.00012285,2]
[323313002,1713885061173,-500.0,0.00012285,2]
[323313003,1713885061183,-1180.66,0.00012285,2]
[323313004,1713885061196,-500.0,0.00012285,2]
[323313005,1713885061206,-500.0,0.00012285,2]
[323313006,1713885061216,-6802.21,0.00012285,2]
[323313007,1713885061226,-275.19284405,0.00012285,2]
[323313008,1713885061236,-765.91,0.00012285,2]
[323313009,1713885061246,-500.0,0.00012285,2]
[323313010,1713885061257,-500.0,0.00012285,2]
[323313011,1713885061267,-1633.88,0.00012285,2]
[323313012,1713885061278,-500.0,0.00012285,2]
[323313013,1713885061288,-500.0,0.00012285,2]
[323313014,1713885061298,-500.0,0.00012285,2]
[323313015,1713885061307,-500.0,0.00012285,2]
[323313016,1713885061317,-500.0,0.00012285,2]
[323313017,1713885061326,-151.61,0.00012285,2]
[323313018,1713885061335,-1109.35,0.00012285,2]
[323313019,1713885061344,-500.0,0.00012285,2]
[323313020,1713885061353,-694.6,0.00012285,2]
[323313021,1713885061363,-500.0,0.00012285,2]
[323313022,1713885061373,-1266.26,0.00012285,2]
[323313023,1713885061384,-500.0,0.00012285,2]
[323313024,1713885061394,-1019.39,0.00012285,2]
[323313025,1713885061404,-1098.43,0.00012285,2]
[323313026,1713885061413,-500.0,0.00012285,2]
[323313027,1713885061422,-500.0,0.00012285,2]
[323313028,1713885061432,-553.08,0.00012285,2]
[323313029,1713885061445,-838.99,0.00012285,2]
[323313030,1713885061456,-719.43,0.00012285,2]
[323313031,1713885061465,-344.96279521,0.00012285,2]
[323313032,1713885061474,-778.81,0.00012285,2]
[323313033,1713885061484,-500.0,0.00012285,2]
[323313034,1713885061494,-500.0,0.00012285,2]
[323313035,1713885061503,-500.0,0.00012285,2]
[323313036,1713885061514,-2617.81,0.00012285,2]
[323313037,1713885061524,-203.61231704,0.00012285,2]
[323313038,1713885061534,-1182.51,0.00012285,2]
[323313039,1713885061543,-554.09,0.00012285,2]
[323313040,1713885061553,-632.48,0.00012285,2]
[323313041,1713885061563,-500.0,0.00012285,2]
[323313042,1713885061573,-500.0,0.00012285,2]
[323313043,1713885061584,-500.0,0.00012285,2]
[323313044,1713885061594,-2297.67,0.00012285,2]
[323313045,1713885061603,-500.0,0.00012285,2]
[323313046,1713885061612,-196.47,0.00012285,2]
[323313047,1713885061623,-500.0,0.00012285,2]
[323313048,1713885061632,-20704.37,0.00012285,2]
[323313049,1713885061642,-500.0,0.00012285,2]